fUST/lending_fUST_20240808
["ID","MTS","AMOUNT","RATE_DAILY","PERIOD"]
[334463176,1723127487939,-594.89,0.00029041,7]
[334463177,1723127487949,-922.79,0.00029041,7]
[334463178,1723127487958,-500.0,0.00029041,7]
[334463179,1723127487968,-1485.41,0.00029041,7]
[334463180,1723127487977,-500.0,0.00029041,7]
[334463181,1723127487986,-500.0,0.00029041,7]
[334463182,1723127487996,-500.0,0.00029041,7]
[334463183,1723127488006,-559.43,0.00029041,7]
[334463184,1723127488020,-500.0,0.00029041,7]
[334463185,1723127488030,-500.0,0.00029041,7]
[334463186,1723127488039,-500.0,0.00029041,7]
[334463187,1723127488048,-996.39,0.00029041,7]
[334463188,1723127488058,-640.52,0.00029041,7]
[334463189,1723127488067,-880.17,0.00029041,7]
[334463190,1723127488077,-823.49,0.00029041,7]
[334463191,1723127488089,-560.07,0.00029041,7]
[334463192,1723127488098,-500.0,0.00029041,7]
[334463193,1723127488107,-500.0,0.00029041,7]
[334463194,1723127488119,-507.66,0.00029041,7]
[334463195,1723127488129,-528.45221219,0.00029041,7]
[334463196,1723127488139,-1558.81,0.00029041,7]
[334463197,1723127488149,-884.83,0.00029041,7]
[334463198,1723127488160,-500.0,0.00029041,7]
[334463199,1723127488170,-1090.82,0.00029041,7]
[334463200,1723127488179,-500.0,0.00029041,7]
[334463201,1723127488189,-500.0,0.00029041,7]
[334463202,1723127488198,-1144.02,0.00029041,7]
[334463203,1723127488207,-500.0,0.00029041,7]
[334463204,1723127488218,-500.0,0.00029041,7]
[334463205,1723127488228,-500.0,0.00029041,7]
[334463206,1723127488237,-569.8,0.00029041,7]
[334463207,1723127488247,-1461.09,0.00029041,7]
[334463208,1723127488257,-556.81,0.00029041,7]
[334463209,1723127488274,-500.0,0.00029041,7]
[334463210,1723127488284,-500.0,0.00029041,7]
[334463211,1723127488293,-805.07,0.00029041,7]
[334463212,1723127488303,-500.0,0.00029041,7]
[334463213,1723127488313,-500.0,0.00029041,7]
[334463214,1723127488322,-1009.58,0.00029041,7]
[334463215,1723127488332,-500.0,0.00029041,7]
[334463216,1723127488341,-500.0,0.00029041,7]
[334463217,1723127488350,-920.05,0.00029041,7]
[334463218,1723127488360,-594.61,0.00029041,7]
[334463219,1723127488369,-500.0,0.00029041,7]
[334463220,1723127488387,-585.98,0.00029041,7]
[334463221,1723127488398,-500.0,0.00029041,7]
[334463222,1723127488408,-510.14,0.00029041,7]
[334463223,1723127488417,-1430.29,0.00029041,7]
[334463224,1723127488429,-539.74,0.00029041,7]
[334463225,1723127488439,-1045.85,0.00029041,7]
[334463226,1723127488449,-500.0,0.00029041,7]
[334463227,1723127488458,-558.49,0.00029041,7]
[334463228,1723127488469,-1431.19,0.00029041,7]
[334463229,1723127488478,-500.0,0.00029041,7]
[334463230,1723127488489,-500.0,0.00029041,7]
[334463231,1723127488500,-1342.57,0.00029041,7]
[334463232,1723127488510,-1023.16,0.00029041,7]
[334463233,1723127488523,-500.0,0.00029041,7]
[334463234,1723127488710,-500.0,0.00029041,7]
[334463235,1723127488721,-642.71,0.00029041,7]
[334463236,1723127488732,-2112.22,0.00029041,7]
[334463237,1723127488741,-1260.28,0.00029041,7]
[334463238,1723127488750,-500.0,0.00029041,7]
[334463239,1723127488760,-500.0,0.00029041,7]
[334463240,1723127488773,-500.0,0.00029041,7]
[334463241,1723127488783,-500.0,0.00029041,7]
[334463242,1723127488793,-500.0,0.00029041,7]
[334463243,1723127488804,-4267.44,0.00029041,7]
[334463244,1723127488813,-734.27,0.00029041,7]
[334463245,1723127488822,-500.0,0.00029041,7]
[334463246,1723127488831,-500.0,0.00029041,7]
[334463247,1723127488840,-1187.94,0.00029041,7]
[334463248,1723127488849,-658.67,0.00029041,7]
[334463249,1723127488859,-1918.9,0.00029041,7]
[334463250,1723127488868,-500.0,0.00029041,7]
[334463251,1723127488877,-500.0,0.00029041,7]
[334463252,1723127488887,-500.0,0.00029041,7]
[334463253,1723127488897,-500.0,0.00029041,7]
[334463254,1723127488906,-522.35,0.00029041,7]
[334463255,1723127488915,-2890.91,0.00029041,7]
[334463256,1723127488924,-500.0,0.00029041,7]
[334463257,1723127488934,-638.14820629,0.00029041,7]
[334463258,1723127488944,-845.58,0.00029041,7]
[334463259,1723127488954,-500.0,0.00029041,7]
[334463260,1723127488963,-500.0,0.00029041,7]
[334463261,1723127488974,-500.0,0.00029041,7]
[334463262,1723127488983,-3581.63,0.00029041,7]
[334463263,1723127488995,-2657.73,0.00029041,7]
[334463264,1723127489005,-500.0,0.00029041,7]
[334463265,1723127489017,-500.0,0.00029041,7]
[334463266,1723127489027,-356.99917245,0.00029041,7]
[334463267,1723127489037,-1265.98,0.00029041,7]
[334463268,1723127489046,-500.0,0.00029041,7]
[334463269,1723127489056,-2496.81,0.00029041,7]
[334463270,1723127489067,-2264.42,0.00029041,7]
[334463271,1723127489076,-500.0,0.00029041,7]
[334463272,1723127489086,-500.0,0.00029041,7]
[334463273,1723127489095,-500.0,0.00029041,7]
[334463274,1723127489104,-358.5,0.00029041,7]
[334463275,1723127489115,-2067.39,0.00029041,7]
[334463276,1723127489126,-500.0,0.00029041,7]
[334463277,1723127489135,-1648.64,0.00029041,7]
[334463278,1723127489144,-12212.07,0.00029041,7]
[334463279,1723127489153,-2215.99,0.00029041,7]
[334463280,1723127489165,-500.0,0.00029041,7]
[334463281,1723127489175,-500.0,0.00029041,7]
[334463282,1723127489186,-635.13503006,0.00029041,7]
[334463283,1723127489196,-613.55,0.00029041,7]
[334463284,1723127489205,-180.10871493,0.00029041,7]
[334463285,1723127489214,-3244.38,0.00029041,7]
[334463286,1723127489224,-560.15,0.00029041,7]
[334463287,1723127489235,-500.0,0.00029041,7]
[334463288,1723127489245,-756.07,0.00029041,7]
[334463289,1723127489254,-500.0,0.00029041,7]
[334463290,1723127489263,-2435.78,0.00029041,7]
[334463291,1723127489277,-500.0,0.00029041,7]
[334463292,1723127489286,-500.0,0.00029041,7]
[334463293,1723127489296,-4048.6,0.00029041,7]
[334463294,1723127489306,-3340.35,0.00029041,7]
[334463295,1723127489315,-2023.37,0.00029041,7]
[334463296,1723127489325,-620.24,0.00029041,7]
[334463297,1723127489335,-887.12,0.00029041,7]
[334463298,1723127489346,-500.0,0.00029041,7]
[334463299,1723127489356,-500.0,0.00029041,7]
[334463300,1723127489366,-330.73749566,0.00029041,7]
[334463301,1723127489376,-1014.22,0.00029041,7]
[334463302,1723127489386,-739.27,0.00029041,7]
[334463303,1723127489396,-694.31,0.00029041,7]
[334463304,1723127489407,-496.46616836,0.00029041,7]
[334463305,1723127489419,-1306.27,0.00029041,7]
[334463306,1723127489429,-500.0,0.00029041,7]
[334463307,1723127489439,-8560.56,0.00029041,7]
[334463308,1723127489449,-500.0,0.00029041,7]
[334463309,1723127489460,-642.95,0.00029041,7]
[334463310,1723127489470,-500.0,0.00029041,7]
[334463311,1723127489481,-942.49,0.00029041,7]
[334463312,1723127489490,-500.0,0.00029041,7]
[334463313,1723127489500,-1320.99,0.00029041,7]
[334463314,1723127489511,-500.0,0.00029041,7]
[334463315,1723127489521,-500.0,0.00029041,7]
[334463316,1723127489530,-500.0,0.00029041,7]
[334463317,1723127489539,-1361.2,0.00029041,7]
[334463318,1723127489548,-1149.0,0.00029041,7]
[334463319,1723127489559,-1479.67,0.00029041,7]
[334463320,1723127489571,-500.0,0.00029041,7]
[334463321,1723127489581,-2572.02,0.00029041,7]
[334463322,1723127489591,-500.0,0.00029041,7]
[334463323,1723127489600,-1595.35,0.00029041,7]
[334463324,1723127489609,-500.0,0.00029041,7]
[334463325,1723127489618,-543.51,0.00029041,7]
[334463326,1723127489628,-3266.81,0.00029041,7]
[334463327,1723127489637,-693.0,0.00029041,7]
[334463328,1723127489647,-8118.87,0.00029041,7]
[334463329,1723127489656,-5221.71,0.00029041,7]
[334463330,1723127489666,-500.0,0.00029041,7]
[334463331,1723127489676,-1201.56,0.00029041,7]
[334463332,1723127489685,-1060.18,0.00029041,7]
[334463333,1723127489695,-1147.62,0.00029041,7]
[334463334,1723127489707,-1741.79,0.00029041,7]
[334463335,1723127489719,-1949.49,0.00029041,7]
[334463336,1723127489730,-1686.85,0.00029041,7]
[334463337,1723127489741,-500.0,0.00029041,2]
[334463338,1723127489750,-500.0,0.00029041,7]
[334463339,1723127489760,-500.0,0.00029041,7]
[334463340,1723127489772,-500.0,0.00029041,7]
[334463341,1723127489785,-2014.78,0.00029041,7]
[334463342,1723127489796,-3383.83,0.00029041,7]
[334463343,1723127489806,-1394.08,0.00029041,7]
[334463344,1723127489817,-711.37,0.00029041,7]
[334463345,1723127489827,-500.0,0.00029041,7]
[334463346,1723127489836,-500.0,0.00029041,7]
[334463347,1723127489850,-500.0,0.00029041,7]
[334463348,1723127489861,-3113.94,0.00029041,7]
[334463349,1723127489870,-325.38663124,0.00029041,7]
[334463350,1723127489881,-1325.37,0.00029041,7]
[334463351,1723127489891,-709.86,0.00029041,7]
[334463352,1723127489900,-500.0,0.00029041,7]
[334463353,1723127489909,-200.99530001,0.00029042,5]
[334463354,1723127489919,-4600.0,0.00029072,2]
[334463355,1723127489930,-598.0,0.000291,2]
[334463356,1723127489939,-500.0,0.00029221,2]
[334463357,1723127489949,-151.0,0.00029249,5]
[334463358,1723127489960,-500.0,0.00029304,2]
[334463359,1723127489970,-2900.0,0.00029313,2]
[334463360,1723127489981,-500.0,0.00029315,7]
[334463361,1723127489993,-500.0,0.00029315,7]
[334463362,1723127490003,-540.86,0.00029315,7]
[334463363,1723127490014,-500.0,0.00029315,7]
[334463364,1723127490027,-500.0,0.00029315,7]
[334463365,1723127490037,-500.0,0.00029315,7]
[334463366,1723127490047,-500.0,0.00029315,7]
[334463367,1723127490058,-784.22,0.00029315,7]
[334463368,1723127490068,-500.0,0.00029315,7]
[334463369,1723127490078,-519.48,0.00029315,7]
[334463370,1723127490090,-500.0,0.00029315,7]
[334463371,1723127490101,-500.0,0.00029315,7]
[334463372,1723127490110,-500.0,0.00029315,7]
[334463373,1723127490119,-500.0,0.00029315,7]
[334463374,1723127490129,-500.0,0.00029315,7]
[334463375,1723127490138,-500.0,0.00029315,7]
[334463376,1723127490148,-500.0,0.00029315,7]
[334463377,1723127490158,-1011.75,0.00029315,7]
[334463378,1723127490168,-634.85,0.00029315,7]
[334463379,1723127490177,-500.0,0.00029315,7]
[334463380,1723127490187,-994.74,0.00029315,7]
[334463381,1723127490196,-445.02360822,0.00029315,7]
[334463382,1723127490206,-1685.21,0.00029315,7]
[334463383,1723127490215,-500.0,0.00029315,7]
[334463384,1723127490225,-500.0,0.00029315,7]
[334463385,1723127490235,-951.68,0.00029315,7]
[334463386,1723127490244,-500.0,0.00029315,7]
[334463387,1723127490254,-601.83,0.00029315,7]
[334463388,1723127490265,-525.69,0.00029315,7]
[334463389,1723127490276,-500.0,0.00029315,7]
[334463390,1723127490286,-500.0,0.00029315,7]
[334463391,1723127490295,-500.0,0.00029315,7]
[334463392,1723127490304,-500.0,0.00029315,7]
[334463393,1723127490313,-500.0,0.00029315,7]
[334463394,1723127490323,-500.0,0.00029315,7]
[334463395,1723127490332,-500.0,0.00029315,7]
[334463396,1723127490341,-500.0,0.00029315,7]
[334463397,1723127490352,-1348.57,0.00029315,7]
[334463398,1723127490361,-557.24,0.00029315,7]
[334463399,1723127490373,-581.9,0.00029315,7]
[334463400,1723127490384,-880.21,0.00029315,7]
[334463401,1723127490394,-500.0,0.00029315,7]
[334463402,1723127490403,-819.79,0.00029315,7]
[334463403,1723127490413,-513.48,0.00029315,7]
[334463404,1723127490423,-500.0,0.00029315,7]
[334463405,1723127490433,-715.11,0.00029315,7]
[334463406,1723127490443,-831.75,0.00029315,7]
[334463407,1723127490454,-500.0,0.00029315,7]
[334463408,1723127490464,-500.0,0.00029315,7]
[334463409,1723127490473,-500.0,0.00029315,7]
[334463410,1723127490483,-500.0,0.00029315,7]
[334463411,1723127490492,-500.0,0.00029315,7]
[334463412,1723127490502,-1162.47,0.00029315,7]
[334463413,1723127490512,-500.0,0.00029315,7]
[334463414,1723127490523,-437.94252632,0.00029315,7]
[334463415,1723127490533,-500.0,0.00029315,7]
[334463416,1723127490542,-500.0,0.00029315,7]
[334463417,1723127490551,-500.0,0.00029315,7]
[334463418,1723127490561,-500.0,0.00029315,7]
[334463419,1723127490572,-500.0,0.00029315,7]
[334463420,1723127490581,-833.91,0.00029315,7]
[334463421,1723127490591,-1721.11,0.00029315,7]
[334463422,1723127490601,-1019.11,0.00029315,7]
[334463423,1723127490610,-1196.4,0.00029315,7]
[334463424,1723127490619,-257.63461811,0.00029315,7]
[334463425,1723127490630,-500.0,0.00029315,7]
[334463426,1723127490640,-500.0,0.00029315,7]
[334463427,1723127490650,-500.0,0.00029315,7]
[334463428,1723127490661,-1000.5,0.00029315,7]
[334463429,1723127490674,-500.0,0.00029315,7]
[334463430,1723127490684,-500.0,0.00029315,7]
[334463431,1723127490695,-608.73,0.00029315,7]
[334463432,1723127490705,-1185.23,0.00029315,7]
[334463433,1723127490719,-1207.54,0.00029315,7]
[334463434,1723127490728,-1333.07,0.00029315,7]
[334463435,1723127490738,-500.0,0.00029315,7]
[334463436,1723127490747,-693.21,0.00029315,7]
[334463437,1723127490757,-500.0,0.00029315,7]
[334463438,1723127490767,-890.75,0.00029315,7]
[334463439,1723127490779,-500.0,0.00029315,7]
[334463440,1723127490789,-500.0,0.00029315,7]
[334463441,1723127490800,-795.04,0.00029315,7]
[334463442,1723127490810,-655.27,0.00029315,7]
[334463443,1723127490819,-693.74,0.00029315,7]
[334463444,1723127490828,-782.87,0.00029315,7]
[334463445,1723127490838,-500.0,0.00029315,7]
[334463446,1723127490847,-500.0,0.00029315,7]
[334463447,1723127490857,-500.0,0.00029315,7]
[334463448,1723127490867,-675.8,0.00029315,7]
[334463449,1723127490877,-1560.89,0.00029315,7]
[334463450,1723127490886,-1680.07,0.00029315,7]
[334463451,1723127490897,-706.34,0.00029315,7]
[334463452,1723127490907,-1242.93,0.00029315,7]
[334463453,1723127491050,-771.49,0.00029315,7]
[334463454,1723127491060,-500.0,0.00029315,7]
[334463455,1723127491070,-500.0,0.00029315,7]
[334463456,1723127491079,-594.89,0.00029315,7]
[334463457,1723127491089,-922.79,0.00029315,7]
[334463458,1723127491098,-500.0,0.00029315,7]
[334463459,1723127491109,-1485.41,0.00029315,7]
[334463460,1723127491118,-500.0,0.00029315,7]
[334463461,1723127491129,-479.34792309,0.00029315,7]
[334463462,1723127491138,-500.0,0.00029315,7]
[334463463,1723127491147,-559.43,0.00029315,7]
[334463464,1723127491157,-500.0,0.00029315,7]
[334463465,1723127491167,-500.0,0.00029315,7]
[334463466,1723127491177,-500.0,0.00029315,7]
[334463467,1723127491187,-996.39,0.00029315,7]
[334463468,1723127491196,-640.52,0.00029315,7]
[334463469,1723127491206,-880.17,0.00029315,7]
[334463470,1723127491216,-823.49,0.00029315,7]
[334463471,1723127491225,-560.07,0.00029315,7]
[334463472,1723127491236,-500.0,0.00029315,7]
[334463473,1723127491246,-500.0,0.00029315,7]
[334463474,1723127491256,-507.66,0.00029315,7]
[334463475,1723127491265,-1558.81,0.00029315,7]
[334463476,1723127491276,-884.83,0.00029315,7]
[334463477,1723127491286,-500.0,0.00029315,7]
[334463478,1723127491295,-1090.82,0.00029315,7]
[334463479,1723127491305,-500.0,0.00029315,7]
[334463480,1723127491315,-500.0,0.00029315,7]
[334463481,1723127491325,-1144.02,0.00029315,7]
[334463482,1723127491334,-500.0,0.00029315,7]
[334463483,1723127491344,-500.0,0.00029315,7]
[334463484,1723127491357,-500.0,0.00029315,7]
[334463485,1723127491367,-569.8,0.00029315,7]
[334463486,1723127491376,-1461.09,0.00029315,7]
[334463487,1723127491385,-556.81,0.00029315,7]
[334463488,1723127491395,-500.0,0.00029315,7]
[334463489,1723127491404,-500.0,0.00029315,7]
[334463490,1723127491413,-805.07,0.00029315,7]
[334463491,1723127491423,-500.0,0.00029315,7]
[334463492,1723127491432,-500.0,0.00029315,7]
[334463493,1723127491442,-1009.58,0.00029315,7]
[334463494,1723127491452,-500.0,0.00029315,7]
[334463495,1723127491461,-500.0,0.00029315,7]
[334463496,1723127491470,-920.05,0.00029315,7]
[334463497,1723127491480,-594.61,0.00029315,7]
[334463498,1723127491489,-500.0,0.00029315,7]
[334463499,1723127491499,-585.98,0.00029315,7]
[334463500,1723127491508,-500.0,0.00029315,7]
[334463501,1723127491517,-510.14,0.00029315,7]
[334463502,1723127491529,-1430.29,0.00029315,7]
[334463503,1723127491539,-1045.85,0.00029315,7]
[334463504,1723127491549,-539.74,0.00029315,7]
[334463505,1723127491558,-500.0,0.00029315,7]
[334463506,1723127491568,-558.49,0.00029315,7]
[334463507,1723127491577,-1431.19,0.00029315,7]
[334463508,1723127491587,-500.0,0.00029315,7]
[334463509,1723127491596,-500.0,0.00029315,7]
[334463510,1723127491606,-1342.57,0.00029315,7]
[334463511,1723127491616,-1023.16,0.00029315,7]
[334463512,1723127491626,-500.0,0.00029315,7]
[334463513,1723127491636,-500.0,0.00029315,7]
[334463514,1723127491645,-642.71,0.00029315,7]
[334463515,1723127491655,-2112.22,0.00029315,7]
[334463516,1723127491665,-1260.28,0.00029315,7]
[334463517,1723127491674,-500.0,0.00029315,7]
[334463518,1723127491683,-500.0,0.00029315,7]
[334463519,1723127491693,-500.0,0.00029315,7]
[334463520,1723127491703,-500.0,0.00029315,7]
[334463521,1723127491718,-4267.44,0.00029315,7]
[334463522,1723127491727,-734.27,0.00029315,7]
[334463523,1723127491737,-500.0,0.00029315,7]
[334463524,1723127491747,-500.0,0.00029315,7]
[334463525,1723127491757,-1187.94,0.00029315,7]
[334463526,1723127491767,-658.67,0.00029315,7]
[334463527,1723127491778,-1918.9,0.00029315,7]
[334463528,1723127491789,-500.0,0.00029315,7]
[334463529,1723127491801,-500.0,0.00029315,7]
[334463530,1723127491810,-500.0,0.00029315,7]
[334463531,1723127491819,-500.0,0.00029315,7]
[334463532,1723127491829,-522.35,0.00029315,7]
[334463533,1723127491838,-2890.91,0.00029315,7]
[334463534,1723127491847,-500.0,0.00029315,7]
[334463535,1723127491857,-845.58,0.00029315,7]
[334463536,1723127491866,-500.0,0.00029315,7]
[334463537,1723127491876,-500.0,0.00029315,7]
[334463538,1723127491885,-516.99974157,0.00029315,7]
[334463539,1723127491895,-3581.63,0.00029315,7]
[334463540,1723127491905,-2657.73,0.00029315,7]
[334463541,1723127491913,-500.0,0.00029315,7]
[334463542,1723127491923,-500.0,0.00029315,7]
[334463543,1723127491932,-1265.98,0.00029315,7]
[334463544,1723127491942,-500.0,0.00029315,7]
[334463545,1723127491952,-2496.81,0.00029315,7]
[334463546,1723127491962,-2264.42,0.00029315,7]
[334463547,1723127491971,-500.0,0.00029315,7]
[334463548,1723127491981,-500.0,0.00029315,7]
[334463549,1723127491990,-500.0,0.00029315,7]
[334463550,1723127491999,-2067.39,0.00029315,7]
[334463551,1723127492009,-500.0,0.00029315,7]
[334463552,1723127492018,-1648.64,0.00029315,7]
[334463553,1723127492031,-12212.07,0.00029315,7]
[334463554,1723127492040,-2215.99,0.00029315,7]
[334463555,1723127492050,-500.0,0.00029315,7]
[334463556,1723127492059,-500.0,0.00029315,7]
[334463557,1723127492069,-3244.38,0.00029315,7]
[334463558,1723127492078,-560.15,0.00029315,7]
[334463559,1723127492088,-500.0,0.00029315,7]
[334463560,1723127492098,-756.07,0.00029315,7]
[334463561,1723127492107,-500.0,0.00029315,7]
[334463562,1723127492117,-2435.78,0.00029315,7]
[334463563,1723127492126,-500.0,0.00029315,7]
[334463564,1723127492136,-500.0,0.00029315,7]
[334463565,1723127492146,-4048.6,0.00029315,7]
[334463566,1723127492156,-3340.35,0.00029315,7]
[334463567,1723127492167,-2023.37,0.00029315,7]
[334463568,1723127492178,-620.24,0.00029315,7]
[334463569,1723127492188,-887.12,0.00029315,7]
[334463570,1723127492198,-500.0,0.00029315,7]
[334463571,1723127492208,-500.0,0.00029315,7]
[334463572,1723127492218,-1014.22,0.00029315,7]
[334463573,1723127492228,-739.27,0.00029315,7]
[334463574,1723127492238,-694.31,0.00029315,7]
[334463575,1723127492248,-1306.27,0.00029315,7]
[334463576,1723127492258,-8560.56,0.00029315,7]
[334463577,1723127492268,-500.0,0.00029315,7]
[334463578,1723127492279,-642.95,0.00029315,7]
[334463579,1723127492289,-504.82248317,0.00029315,7]
[334463580,1723127492298,-942.49,0.00029315,7]
[334463581,1723127492309,-500.0,0.00029315,7]
[334463582,1723127492319,-1320.99,0.00029315,7]
[334463583,1723127492329,-500.0,0.00029315,7]
[334463584,1723127492340,-500.0,0.00029315,7]
[334463585,1723127492349,-1361.2,0.00029315,7]
[334463586,1723127492358,-1149.0,0.00029315,7]
[334463587,1723127492368,-1479.67,0.00029315,7]
[334463588,1723127492378,-500.0,0.00029315,7]
[334463589,1723127492388,-2572.02,0.00029315,7]
[334463590,1723127492397,-500.0,0.00029315,7]
[334463591,1723127492407,-1595.35,0.00029315,7]
[334463592,1723127492417,-500.0,0.00029315,7]
[334463593,1723127492428,-543.51,0.00029315,7]
[334463594,1723127492438,-3266.81,0.00029315,7]
[334463595,1723127492449,-693.0,0.00029315,7]
[334463596,1723127492459,-8118.87,0.00029315,7]
[334463597,1723127492469,-5221.71,0.00029315,7]
[334463598,1723127492479,-500.0,0.00029315,7]
[334463599,1723127492489,-1201.56,0.00029315,7]
[334463600,1723127492499,-1060.18,0.00029315,7]
[334463601,1723127492509,-1147.62,0.00029315,7]
[334463602,1723127492519,-1741.79,0.00029315,7]
[334463603,1723127492531,-1949.49,0.00029315,7]
[334463604,1723127492540,-1686.85,0.00029315,7]
[334463605,1723127492550,-500.0,0.00029315,2]
[334463606,1723127492559,-500.0,0.00029315,7]
[334463607,1723127492568,-500.0,0.00029315,7]
[334463608,1723127492577,-500.0,0.00029315,7]
[334463609,1723127492586,-2014.78,0.00029315,7]
[334463610,1723127492595,-3383.83,0.00029315,7]
[334463611,1723127492605,-1394.08,0.00029315,7]
[334463612,1723127492615,-711.37,0.00029315,7]
[334463613,1723127492625,-500.0,0.00029315,7]
[334463614,1723127492635,-500.0,0.00029315,7]
[334463615,1723127492645,-500.0,0.00029315,7]
[334463616,1723127492655,-3113.94,0.00029315,7]
[334463617,1723127492666,-1325.37,0.00029315,7]
[334463618,1723127492675,-709.86,0.00029315,7]
[334463619,1723127492684,-500.0,0.00029315,7]
[334463620,1723127492694,-400.0,0.00029342,5]
[334463621,1723127492704,-400.0,0.00029342,5]
[334463622,1723127492714,-151.54018204,0.00029355,2]
[334463623,1723127492725,-515.66,0.0002943,2]
[334463624,1723127492741,-150.0,0.00029458,2]
[334463625,1723127492750,-250.0,0.00029458,2]
[334463626,1723127492759,-1412.0,0.00029469,2]
[334463627,1723127492770,-151.682,0.00029469,2]
[334463628,1723127492782,-517.052,0.00029469,2]
[334463629,1723127492791,-150.0,0.00029499,2]
[334463630,1723127492800,-500.0,0.00029589,7]
[334463631,1723127492810,-500.0,0.00029589,7]
[334463632,1723127492819,-540.86,0.00029589,7]
[334463633,1723127492829,-500.0,0.00029589,7]
[334463634,1723127492838,-399.80699313,0.00029589,7]
[334463635,1723127492848,-500.0,0.00029589,7]
[334463636,1723127492858,-500.0,0.00029589,7]
[334463637,1723127492868,-784.22,0.00029589,7]
[334463638,1723127492877,-500.0,0.00029589,7]
[334463639,1723127492887,-519.48,0.00029589,7]
[334463640,1723127492897,-500.0,0.00029589,7]
[334463641,1723127492907,-500.0,0.00029589,7]
[334463642,1723127492916,-500.0,0.00029589,7]
[334463643,1723127492926,-500.0,0.00029589,7]
[334463644,1723127492936,-500.0,0.00029589,7]
[334463645,1723127492945,-500.0,0.00029589,7]
[334463646,1723127492954,-500.0,0.00029589,7]
[334463647,1723127492963,-1011.75,0.00029589,7]
[334463648,1723127492972,-634.85,0.00029589,7]
[334463649,1723127492982,-500.0,0.00029589,7]
[334463650,1723127492991,-994.74,0.00029589,7]
[334463651,1723127493001,-1685.21,0.00029589,7]
[334463652,1723127493011,-500.0,0.00029589,7]
[334463653,1723127493020,-500.0,0.00029589,7]
[334463654,1723127493144,-951.68,0.00029589,7]
[334463655,1723127493156,-500.0,0.00029589,7]
[334463656,1723127493167,-601.83,0.00029589,7]
[334463657,1723127493177,-525.69,0.00029589,7]
[334463658,1723127493186,-500.0,0.00029589,7]
[334463659,1723127493196,-500.0,0.00029589,7]
[334463660,1723127493206,-500.0,0.00029589,7]
[334463661,1723127493216,-319.81565308,0.00029589,7]
[334463662,1723127493225,-500.0,0.00029589,7]
[334463663,1723127493235,-500.0,0.00029589,7]
[334463664,1723127493245,-500.0,0.00029589,7]
[334463665,1723127493254,-500.0,0.00029589,7]
[334463666,1723127493265,-1348.57,0.00029589,7]
[334463667,1723127493280,-557.24,0.00029589,7]
[334463668,1723127493291,-581.9,0.00029589,7]
[334463669,1723127493300,-880.21,0.00029589,7]
[334463670,1723127493310,-500.0,0.00029589,7]
[334463671,1723127493320,-819.79,0.00029589,7]
[334463672,1723127493329,-513.48,0.00029589,7]
[334463673,1723127493339,-500.0,0.00029589,7]
[334463674,1723127493349,-715.11,0.00029589,7]
[334463675,1723127493358,-831.75,0.00029589,7]